bitfinex/quotes_BTCUSD_20251212
["timestamp","ask_amount","ask_price","bid_price","bid_amount"]
[1765570352565,0.01109127,90161.0,90160.0,0.04658287]
[1765570358237,0.01109127,90161.0,90160.0,0.00561287]
[1765570358999,0.05429127,90161.0,90160.0,0.00561287]
[1765570359430,0.01109127,90161.0,90160.0,0.02165287]
[1765570359605,0.01109127,90161.0,90160.0,0.04658287]
[1765570361719,0.02300127,90161.0,90160.0,0.00561287]
[1765570361947,0.01109127,90161.0,90160.0,0.00561287]
[1765570362149,0.01109127,90161.0,90160.0,0.02165287]
[1765570362508,0.01109127,90161.0,90160.0,0.01965287]
[1765570362758,0.01109127,90161.0,90160.0,0.02065287]
[1765570363755,0.01109127,90161.0,90160.0,0.01865287]
[1765570363991,0.01109127,90161.0,90160.0,0.01965287]
[1765570365602,0.01109077,90165.0,90160.0,0.01965287]
[1765570365603,0.0110904,90168.0,90163.0,0.01109102]
[1765570365838,0.01108954,90175.0,90172.0,0.01108991]
[1765570366093,0.01108954,90175.0,90173.0,0.03392]
[1765570366267,0.01108942,90176.0,90174.0,0.01604]
[1765570366471,0.01108942,90176.0,90175.0,0.01604]
[1765570366668,0.01108942,90176.0,90175.0,0.01765287]
[1765570366883,0.01108917,90178.0,90175.0,0.01765287]
[1765570366884,0.01108917,90178.0,90175.0,0.05367241]
[1765570367076,0.01108893,90180.0,90177.0,0.01604]
[1765570367264,0.01108905,90179.0,90176.0,0.03601942]
[1765570367531,0.01108905,90179.0,90176.0,0.02654287]
[1765570367711,0.23287235,90179.0,90178.0,0.01604]
[1765570368347,0.23387235,90179.0,90178.0,0.01604]
[1765570368546,0.22178604,90177.0,90176.0,0.00161287]
[1765570369504,0.22180818,90168.0,90167.0,0.147]
[1765570369732,0.24955818,90168.0,90167.0,0.147]
[1765570369928,0.31526818,90168.0,90167.0,0.147]
[1765570370341,0.22183524,90157.0,90156.0,8.164e-05]
[1765570371239,0.22183524,90157.0,90156.0,0.01652164]
[1765570371386,0.22183524,90157.0,90156.0,0.01752164]
[1765570371590,0.22183524,90157.0,90156.0,0.00108164]
[1765570372366,0.22183524,90157.0,90156.0,0.00169451]
[1765570372896,0.22183524,90157.0,90156.0,0.00469451]
[1765570373155,0.22183524,90157.0,90156.0,0.00269451]
[1765570373534,0.22183524,90157.0,90156.0,0.00369451]
[1765570376033,0.30485524,90157.0,90156.0,0.00369451]
[1765570376637,0.28032524,90157.0,90156.0,0.00369451]
[1765570377095,0.26503524,90157.0,90156.0,0.00369451]
[1765570377304,0.26503524,90157.0,90156.0,0.00269451]
[1765570377450,0.26503524,90157.0,90156.0,0.00169451]
[1765570380198,0.22183524,90157.0,90156.0,0.00169451]
[1765570381713,0.30485524,90157.0,90156.0,0.00169451]
[1765570381913,0.30485524,90157.0,90156.0,8.164e-05]
[1765570381914,1.63483363,90157.0,90156.0,8.164e-05]
[1765570382123,0.66313363,90157.0,90156.0,8.164e-05]
[1765570383169,0.68901046,90157.0,90156.0,8.164e-05]
[1765570383716,0.68901046,90157.0,90140.0,0.0002]
[1765570383718,0.0432,90141.0,90140.0,0.0002]
[1765570383944,0.6788308,90141.0,90140.0,0.00031617]
[1765570384149,0.68704983,90141.0,90140.0,0.00031617]
[1765570384885,0.68804983,90141.0,90140.0,0.00031617]
[1765570385486,0.51259923,90131.0,90130.0,0.0002]
[1765570385668,0.65063762,90131.0,90130.0,0.0002]
[1765570385883,0.67516762,90131.0,90130.0,0.0002]
[1765570387028,0.67616762,90131.0,90130.0,0.0002]
[1765570390953,0.63296762,90131.0,90130.0,0.0002]
[1765570391172,0.54085923,90131.0,90130.0,0.0002]
[1765570391527,0.56538923,90131.0,90130.0,0.00055899]
[1765570391869,0.60858923,90131.0,90130.0,0.00055899]
[1765570392507,0.60758923,90131.0,90130.0,0.00055899]
[1765570392714,0.65760762,90131.0,90130.0,0.00055899]
[1765570393733,0.36690762,90131.0,90130.0,0.00055899]
[1765570394386,0.32370762,90131.0,90130.0,0.00055899]
[1765570394512,0.36690762,90131.0,90130.0,0.00055899]
[1765570395654,0.65760762,90131.0,90130.0,0.00055899]
[1765570396068,0.61440762,90131.0,90130.0,0.00055899]
[1765570396278,0.65760762,90131.0,90130.0,0.00055899]
[1765570397092,0.65960762,90131.0,90130.0,0.00055899]
[1765570397285,0.66060762,90131.0,90130.0,0.00055899]
[1765570398088,0.61740762,90131.0,90130.0,0.00055899]
[1765570398294,0.66060762,90131.0,90130.0,0.00055899]
[1765570398497,0.67816762,90131.0,90130.0,0.00055899]
[1765570399018,0.67516762,90131.0,90130.0,0.00055899]
[1765570399422,0.67616762,90131.0,90130.0,0.00055899]
[1765570399849,0.63296762,90131.0,90130.0,0.00055899]
[1765570400013,0.67616762,90131.0,90130.0,0.00055899]
[1765570400837,0.67716762,90131.0,90130.0,0.00055899]
[1765570403637,0.63396762,90131.0,90130.0,0.00055899]
[1765570403836,0.67716762,90131.0,90130.0,0.00055899]
[1765570404404,0.61640762,90131.0,90130.0,0.00055899]
[1765570404606,0.67716762,90131.0,90130.0,0.00055899]
[1765570404990,0.81146336,90131.0,90130.0,0.00055899]
[1765570405804,0.8149082,90131.0,90130.0,0.00055899]
[1765570406195,0.8169082,90131.0,90130.0,0.00055899]
[1765570406398,0.8159082,90131.0,90130.0,0.00055899]
[1765570407207,0.82624428,90131.0,90130.0,0.00055899]
[1765570407627,0.82724428,90131.0,90130.0,0.00055899]
[1765570408224,0.69917666,90131.0,90130.0,0.00055899]
[1765570408425,0.74656576,90131.0,90130.0,0.00055899]
[1765570409595,0.71673666,90131.0,90130.0,0.00055899]
[1765570411612,0.75650879,90131.0,90130.0,0.00055899]
[1765570412334,0.71673666,90131.0,90130.0,0.00055899]
[1765570413220,0.82724428,90131.0,90130.0,0.00055899]
[1765570413384,0.80345616,90131.0,90130.0,0.00055899]
[1765570413597,0.69294854,90131.0,90130.0,0.00055899]
[1765570414196,0.63218854,90131.0,90130.0,0.00055899]
[1765570414430,0.63848531,90131.0,90130.0,0.00055899]
[1765570414641,0.6885037,90131.0,90130.0,0.00055899]
[1765570415194,0.6865037,90131.0,90130.0,0.00055899]
[1765570415808,0.67616762,90131.0,90130.0,0.00055899]
[1765570416908,0.67516762,90131.0,90130.0,0.00055899]
[1765570417139,0.25015923,90131.0,90130.0,0.00217186]
[1765570417360,0.22289923,90131.0,90130.0,0.01750186]
[1765570417571,0.22289923,90131.0,90130.0,0.00217186]
[1765570417767,0.22289923,90131.0,90130.0,0.01750186]
[1765570417925,0.22189923,90131.0,90130.0,0.01750186]
[1765570418706,0.22189923,90131.0,90130.0,0.04167186]
[1765570421115,0.22189923,90131.0,90130.0,0.01850186]
[1765570425283,0.22189923,90131.0,90130.0,0.00317186]
[1765570427665,0.31042762,90131.0,90130.0,0.00155899]
[1765570427867,0.35362762,90131.0,90130.0,0.00155899]
[1765570428556,0.27191762,90131.0,90130.0,0.00155899]
[1765570429352,0.35362762,90131.0,90130.0,0.00055899]
[1765570430579,0.22189923,90131.0,90130.0,0.00055899]
[1765570430762,0.22189923,90131.0,90130.0,0.01716899]
[1765570430976,0.22189923,90131.0,90130.0,0.00055899]
[1765570431342,0.22189923,90131.0,90130.0,0.00255899]
[1765570431544,0.26509923,90131.0,90130.0,0.00255899]
[1765570432098,0.22189923,90131.0,90130.0,0.00255899]
[1765570432309,0.22189923,90131.0,90130.0,0.01816899]
[1765570432598,0.22189923,90131.0,90130.0,0.04125899]
[1765570432761,0.22189923,90131.0,90130.0,0.01816899]
[1765570432958,0.22189923,90131.0,90130.0,0.00255899]
[1765570434332,0.22189923,90131.0,90130.0,0.04287186]
[1765570434504,0.23297764,90138.0,90132.0,0.01109483]
[1765570434737,0.23297764,90138.0,90134.0,0.01109459]
[1765570434738,0.0110941,90138.0,90134.0,0.01109459]
[1765570434912,0.0110941,90138.0,90133.0,0.23298676]
[1765570434913,0.01109336,90144.0,90140.0,0.01109385]
[1765570435137,0.00011594,90144.0,90143.0,0.01109348]
[1765570435261,0.00011594,90144.0,90143.0,0.02831635]
[1765570435465,0.00011594,90144.0,90143.0,0.04031287]
[1765570436481,0.00011594,90144.0,90143.0,0.04231287]
[1765570437996,0.00011594,90144.0,90143.0,0.04531287]
[1765570443246,0.00011594,90144.0,90143.0,0.08850087]
[1765570445227,0.00011594,90144.0,90143.0,0.11068783]
[1765570445813,0.00011594,90144.0,90143.0,0.06749983]
[1765570449339,0.00011594,90144.0,90143.0,0.09730432]
[1765570450591,0.00011594,90144.0,90143.0,0.11486432]
[1765570450834,0.00011594,90144.0,90143.0,0.08505983]
[1765570453486,0.00011594,90144.0,90143.0,0.23205983]
[1765570457821,0.00011594,90144.0,90143.0,0.17579983]
[1765570458067,0.00011594,90144.0,90143.0,0.15361287]
[1765570458277,0.00011594,90144.0,90143.0,0.005]
[1765570458278,0.03923594,90144.0,90143.0,0.005]
[1765570458736,0.04331594,90144.0,90143.0,0.005]
[1765570458935,0.00011594,90144.0,90143.0,0.003]
[1765570459140,0.00011594,90144.0,90143.0,0.004]
[1765570459544,0.00011594,90144.0,90143.0,0.003]
[1765570460365,0.00011594,90144.0,90138.0,0.0110941]
[1765570460366,0.0110936,90142.0,90138.0,0.0110941]
[1765570460562,0.0110936,90142.0,90140.0,0.01659668]
[1765570460887,0.0110936,90142.0,90141.0,0.01642]
[1765570461995,0.0110936,90142.0,90141.0,0.01842]
[1765570462910,0.0110936,90142.0,90141.0,0.01942]
[1765570463113,0.00011594,90144.0,90141.0,0.03051373]
[1765570463333,0.2330786,90144.0,90141.0,0.01942]
[1765570463903,0.22187177,90143.0,90141.0,0.003]
[1765570464310,0.22187177,90143.0,90141.0,0.001]
[1765570464730,0.09352,90142.0,90141.0,0.001]
[1765570464940,0.26508938,90135.0,90131.0,0.00899]
[1765570465160,0.22188938,90135.0,90131.0,0.00899]
[1765570465375,0.26508938,90135.0,90131.0,0.00899]
[1765570465553,0.22188938,90135.0,90131.0,0.02008496]
[1765570465748,0.22188938,90135.0,90134.0,0.01665932]
[1765570465749,0.0432,90135.0,90134.0,0.01665932]
[1765570466596,0.0432,90135.0,90134.0,0.01865932]
[1765570466793,0.0432,90135.0,90134.0,0.00223932]
[1765570467502,0.0432,90135.0,90134.0,0.00423932]
[1765570467953,0.23298083,90137.0,90134.0,0.04654219]
[1765570468164,0.0432,90138.0,90135.0,0.23298384]
[1765570468353,0.01109397,90139.0,90137.0,0.01642]
[1765570468685,0.0110941,90138.0,90136.0,0.02427]
[1765570468888,0.23297788,90138.0,90136.0,0.02588287]
[1765570469093,0.23297788,90138.0,90137.0,0.01642]
[1765570469399,0.23297788,90138.0,90137.0,0.01803287]
[1765570469520,0.0110941,90138.0,90137.0,0.01803287]
[1765570469725,0.23307888,90144.0,90138.0,0.221882]
[1765570469926,0.23307888,90144.0,90142.0,0.01642]
[1765570469927,0.00011594,90144.0,90142.0,0.01642]
[1765570470141,0.00011594,90144.0,90143.0,0.03860696]
[1765570470349,0.00011594,90144.0,90143.0,0.06448983]
[1765570470766,0.00011594,90144.0,90143.0,0.21148983]
[1765570470971,0.00011594,90144.0,90143.0,0.18930287]
[1765570471181,0.00011594,90144.0,90143.0,0.14861287]
[1765570471403,0.22198317,90144.0,90143.0,0.14961287]
[1765570474305,0.26518317,90144.0,90143.0,0.00261287]
[1765570474509,0.26012317,90144.0,90143.0,0.00261287]
[1765570474753,0.30332317,90144.0,90143.0,0.00261287]
[1765570474927,0.30332317,90144.0,90143.0,0.001]
[1765570476517,0.26012317,90144.0,90143.0,0.001]
[1765570476718,0.30332317,90144.0,90143.0,0.001]
[1765570477173,0.26012317,90144.0,90143.0,0.001]
[1765570477939,0.30332317,90144.0,90143.0,0.001]
[1765570481304,0.37090156,90144.0,90143.0,0.001]
[1765570481484,0.66160156,90144.0,90143.0,0.001]
[1765570482011,0.79595273,90144.0,90143.0,0.001]
[1765570482357,0.80039646,90144.0,90143.0,0.001]
[1765570482707,0.68988884,90144.0,90143.0,0.001]
[1765570483028,0.60580777,90135.0,90134.0,0.00023932]
[1765570483232,0.62144777,90135.0,90134.0,0.00023932]
[1765570483452,0.64394777,90135.0,90134.0,0.00023932]
[1765570484333,0.64494777,90135.0,90134.0,0.00023932]
[1765570486941,0.62244777,90135.0,90134.0,0.00023932]
[1765570487114,0.64494777,90135.0,90134.0,0.00023932]
[1765570487954,0.65677777,90135.0,90134.0,0.00023932]
[1765570493474,0.67433777,90135.0,90134.0,0.00023932]
[1765570494177,0.74139877,90135.0,90134.0,0.00023932]
[1765570494360,0.74584301,90135.0,90134.0,0.00023932]
[1765570494570,0.76966428,90135.0,90134.0,0.00023932]
[1765570495959,0.76866428,90135.0,90134.0,0.00023932]
[1765570496442,0.70160328,90135.0,90134.0,0.00023932]
[1765570496785,0.70360328,90135.0,90134.0,0.00023932]
[1765570496933,0.70660328,90135.0,90134.0,0.00023932]
[1765570497333,0.68278201,90135.0,90134.0,0.00023932]
[1765570497714,0.27191762,90131.0,90130.0,0.0002]
[1765570498014,0.27191762,90131.0,90120.0,0.0002]
[1765570498015,0.60584224,90121.0,90120.0,0.0002]
[1765570498129,0.67452224,90121.0,90120.0,0.0002]
[1765570498531,0.69831392,90121.0,90120.0,0.0002]
[1765570498758,0.70275927,90121.0,90120.0,0.0002]
[1765570499749,0.81426689,90121.0,90120.0,0.0002]
[1765570500577,0.81326689,90121.0,90120.0,0.0002]
[1765570500791,0.81426689,90121.0,90120.0,0.0002]
[1765570501197,0.81326689,90121.0,90120.0,0.0002]
[1765570501516,0.81526689,90121.0,90120.0,0.0002]
[1765570502033,0.81726689,90121.0,90120.0,0.0002]
[1765570503592,0.70675927,90121.0,90120.0,0.0002]
[1765570504065,0.70675927,90121.0,90120.0,0.00061889]
[1765570504262,0.63356687,90111.0,90110.0,1e-08]
[1765570504394,0.63356687,90111.0,90090.0,0.0002]
[1765570504395,0.6058915,90101.0,90090.0,0.0002]
[1765570504736,0.6511515,90101.0,90090.0,0.0002]
[1765570504892,0.6745715,90101.0,90090.0,0.0002]
[1765570505496,0.6755715,90101.0,90100.0,0.00058659]
[1765570505911,0.6745715,90101.0,90100.0,0.00058659]
[1765570506338,0.6580115,90101.0,90100.0,0.00058659]
[1765570506700,0.6755715,90101.0,90100.0,0.00058659]
[1765570506871,0.6765715,90101.0,90100.0,0.00058659]
[1765570507075,0.6333715,90101.0,90100.0,0.00058659]
[1765570507231,0.6765715,90101.0,90100.0,0.00058659]
[1765570509405,0.6590115,90101.0,90100.0,0.00058659]
[1765570509609,0.22397311,90101.0,90100.0,0.02547659]
[1765570509814,0.22397311,90101.0,90100.0,0.0260752]
[1765570510417,0.22397311,90101.0,90100.0,0.0101752]
[1765570510623,0.22297311,90101.0,90100.0,0.0101752]
[1765570510943,0.22197311,90101.0,90100.0,0.0111752]
[1765570511116,0.22197311,90101.0,90100.0,0.02868807]
[1765570511315,0.22197311,90101.0,90100.0,0.05325807]
[1765570511521,0.23306879,90103.0,90100.0,0.05325807]
[1765570511727,0.23306879,90103.0,90102.0,0.0159]
[1765570511936,0.23306879,90103.0,90102.0,0.01751287]
[1765570512321,0.31613879,90103.0,90102.0,0.00161287]
[1765570512525,0.31613879,90103.0,90100.0,0.00158659]
[1765570512526,0.22197311,90101.0,90100.0,0.00158659]
[1765570512724,0.28162311,90101.0,90100.0,0.00058659]
[1765570513341,0.26517311,90101.0,90100.0,0.02708946]
[1765570513541,0.26517311,90101.0,90100.0,0.05165946]
[1765570513542,0.22197311,90101.0,90100.0,0.05165946]
[1765570513856,0.22197311,90101.0,90100.0,0.05465946]
[1765570514003,0.22197311,90101.0,90100.0,0.02708946]
[1765570514649,0.22197311,90101.0,90100.0,0.01118946]
[1765570514828,0.22197311,90101.0,90100.0,0.01318946]
[1765570515038,0.22197311,90101.0,90100.0,0.05365946]
[1765570515392,0.22197311,90101.0,90100.0,0.05565946]
[1765570515680,0.01109816,90105.0,90101.0,0.2219707]
[1765570515885,0.2219729,90102.0,90101.0,0.02618287]
[1765570516060,0.2219729,90102.0,90101.0,0.00161287]
[1765570516260,0.23306662,90103.0,90101.0,0.01751287]
[1765570516456,0.01109804,90106.0,90102.0,0.01751287]
[1765570516669,0.01109804,90106.0,90105.0,0.0159]
[1765570516880,0.01109804,90106.0,90105.0,0.04208287]
[1765570517080,0.01109804,90106.0,90105.0,0.00161287]
[1765570517582,0.01109804,90106.0,90105.0,0.01751287]
[1765570517901,0.01109804,90106.0,90105.0,0.01851287]
[1765570518124,0.01109804,90106.0,90105.0,0.00261287]
[1765570518285,0.01109804,90106.0,90105.0,0.01851287]
[1765570518479,0.01109804,90106.0,90105.0,0.01751287]
[1765570518683,0.01109804,90106.0,90105.0,0.04332287]
[1765570519077,0.01109804,90106.0,90105.0,0.01951287]
[1765570519279,0.01109804,90106.0,90105.0,0.02251287]
[1765570519700,0.01109804,90106.0,90105.0,0.00661287]
[1765570520962,0.01109804,90106.0,90105.0,0.04631287]
[1765570521884,0.01109804,90106.0,90105.0,0.02163287]
[1765570522419,0.01109804,90106.0,90105.0,0.0220818]
[1765570522836,0.01109804,90106.0,90105.0,0.0467618]
[1765570523038,0.01109779,90108.0,90105.0,0.0467618]
[1765570523234,0.01109779,90108.0,90106.0,0.02468]
[1765570523235,0.23305545,90108.0,90106.0,0.02468]
[1765570523445,0.23305545,90108.0,90107.0,0.01540907]
[1765570523621,0.23305545,90108.0,90107.0,0.01702194]
[1765570523828,0.23305545,90108.0,90107.0,0.04170194]
[1765570525106,0.23305545,90108.0,90107.0,0.04370194]
[1765570525513,0.23305545,90108.0,90107.0,0.04670194]
[1765570525901,0.27625545,90108.0,90107.0,0.00700194]
[1765570526407,0.23305545,90108.0,90107.0,0.00700194]
[1765570527129,0.32214384,90108.0,90107.0,0.00538907]
[1765570527309,0.65604384,90108.0,90107.0,0.00538907]
[1765570528112,0.67985153,90108.0,90107.0,0.00338907]
[1765570528519,0.67985153,90108.0,90107.0,0.00038907]
[1765570529045,0.71319288,90108.0,90107.0,0.00038907]
[1765570529485,0.71419288,90108.0,90107.0,0.00038907]
[1765570529679,0.8247005,90108.0,90107.0,0.00038907]
[1765570530036,1.7815005,90108.0,90107.0,0.00038907]
[1765570530236,1.7815005,90108.0,90100.0,0.00058659]
[1765570530237,0.5626915,90101.0,90100.0,0.00058659]
[1765570530438,0.6338015,90101.0,90100.0,0.00058659]
[1765570530604,0.69313027,90101.0,90100.0,0.00058659]
[1765570530838,0.69771919,90101.0,90100.0,0.00058659]
[1765570531462,0.69871919,90101.0,90100.0,0.00058659]
[1765570532850,0.69971919,90101.0,90100.0,0.00058659]
[1765570534323,0.6759115,90101.0,90100.0,0.00058659]
[1765570534691,0.6996993,90101.0,90100.0,0.00058659]
[1765570535245,0.6759115,90101.0,90100.0,0.00058659]
[1765570539427,0.6151515,90101.0,90100.0,0.00058659]
[1765570539633,0.6759115,90101.0,90100.0,0.00058659]
[1765570539826,0.002,90101.0,90100.0,0.05088946]
[1765570540173,0.002,90101.0,90100.0,0.27286504]
[1765570540616,0.01109804,90106.0,90100.0,0.05088946]
[1765570540617,0.0110984,90103.0,90100.0,0.05088946]
[1765570540987,0.0110984,90103.0,90102.0,0.01502]
[1765570541185,0.22196348,90105.0,90102.0,0.01663287]
[1765570541393,0.22194945,90111.0,90102.0,0.01663287]
[1765570541394,0.23304687,90111.0,90106.0,0.01109804]
[1765570541591,0.01109767,90109.0,90106.0,0.00161287]
[1765570541909,0.22195587,90108.0,90106.0,0.00161287]
[1765570542312,0.01109767,90109.0,90107.0,0.01502]
[1765570542492,0.22195587,90108.0,90107.0,0.00161287]
[1765570543036,0.22195587,90108.0,90107.0,0.01663287]
[1765570543596,0.22195587,90108.0,90107.0,0.01863287]
[1765570544427,0.22195587,90108.0,90107.0,0.02163287]
[1765570547060,0.22195587,90108.0,90107.0,0.00661287]
[1765570548340,0.22195587,90108.0,90107.0,0.02163287]
[1765570549834,0.23303979,90114.0,90107.0,0.04631287]
[1765570550047,0.0110968,90116.0,90113.0,0.02401]
[1765570550255,0.22193263,90118.0,90113.0,0.02401]
[1765570550256,0.01109619,90121.0,90115.0,0.02611693]
[1765570550467,0.27019787,90122.0,90120.0,0.01581]
[1765570550669,0.27019787,90122.0,90121.0,0.01581]
[1765570550670,0.03717799,90122.0,90121.0,0.01581]
[1765570550888,0.03717799,90122.0,90121.0,0.01742287]
[1765570551063,0.03717799,90122.0,90121.0,0.04162287]
[1765570552005,0.03717799,90122.0,90121.0,0.04262287]
[1765570552377,0.03717799,90122.0,90121.0,0.04462287]
[1765570552590,0.22192129,90123.0,90121.0,0.04462287]
[1765570552741,0.22192129,90123.0,90122.0,0.04001]
[1765570553588,0.01109508,90130.0,90124.0,0.01109582]
[1765570553589,0.0110952,90129.0,90124.0,0.01109582]
[1765570553903,0.23299033,90133.0,90124.0,0.01109582]
[1765570553904,0.01109483,90132.0,90125.0,0.0242]
[1765570554238,0.23299396,90132.0,90129.0,0.00899]
[1765570554557,0.23299396,90132.0,90131.0,0.01581]
[1765570554943,0.23299396,90132.0,90131.0,0.04001]
[1765570555145,0.23299396,90132.0,90131.0,0.04162287]
[1765570555555,0.22189637,90133.0,90131.0,0.04162287]
[1765570555709,0.22189637,90133.0,90132.0,0.04001]
[1765570556307,0.22189637,90133.0,90132.0,0.01581]
[1765570556540,0.22189637,90133.0,90131.0,0.00261287]
[1765570556861,0.22189637,90133.0,90131.0,0.00161287]
[1765570557079,0.22189637,90133.0,90131.0,0.00261287]
[1765570557286,0.00674362,90132.0,90131.0,0.00161287]
[1765570557481,0.22189637,90133.0,90131.0,0.00161287]
[1765570557678,0.22189637,90133.0,90131.0,0.00261287]
[1765570558091,0.00674362,90132.0,90131.0,0.00361287]
[1765570558297,0.22189637,90133.0,90131.0,0.00361287]
[1765570558878,0.22189637,90133.0,90132.0,0.01581]
[1765570559463,0.22189637,90133.0,90132.0,0.04001]
[1765570560087,0.01109459,90134.0,90132.0,0.04001]
[1765570560296,0.27187931,90147.0,90131.0,0.00161287]
[1765570560297,0.01109237,90152.0,90141.0,0.01109373]
[1765570560468,0.04204452,90181.0,90141.0,0.01109373]
[1765570560469,0.01109151,90159.0,90152.0,0.01109237]
[1765570560800,0.22181185,90167.0,90156.0,0.01109188]
[1765570560991,0.22181185,90167.0,90161.0,0.0248]
[1765570560992,0.22182274,90163.0,90161.0,0.0248]
[1765570561395,0.22182274,90163.0,90162.0,0.04001]
[1765570561754,0.22182274,90163.0,90162.0,0.01581]
[1765570562000,0.22182274,90163.0,90161.0,0.00899]
[1765570562162,0.22182274,90163.0,90161.0,0.00999]
[1765570563007,0.22182274,90163.0,90161.0,0.001]
[1765570563435,0.22182274,90163.0,90161.0,0.00999]
[1765570563745,0.22182274,90163.0,90161.0,0.00899]
[1765570563927,0.22182274,90163.0,90162.0,0.001]
[1765570564103,0.22182274,90163.0,90161.0,0.00899]
[1765570564310,0.22181185,90167.0,90161.0,0.00899]
[1765570564311,0.01109016,90170.0,90164.0,0.22181802]
[1765570564511,0.01108979,90173.0,90171.0,0.01581]
[1765570564708,0.0110893,90177.0,90175.0,0.01581]
[1765570564909,0.0110893,90177.0,90171.0,0.22341129]
[1765570564910,0.0110893,90177.0,90176.0,0.01581]
[1765570565296,0.0110893,90177.0,90171.0,0.00161287]
[1765570565297,0.22179834,90172.0,90171.0,0.00161287]
[1765570565745,0.22179834,90172.0,90171.0,0.00038902]
[1765570567549,0.22179834,90172.0,90171.0,0.00138902]
[1765570568350,0.0110893,90177.0,90171.0,0.00138902]
[1765570568351,0.0110893,90177.0,90172.0,0.01108991]
[1765570568711,0.01108794,90188.0,90183.0,0.01108856]
[1765570568912,0.04156,90196.0,90185.0,0.0248]
[1765570568913,0.01108745,90192.0,90185.0,0.0248]
[1765570569116,0.01108758,90191.0,90185.0,0.05061287]
[1765570569620,0.01108708,90195.0,90185.0,0.05061287]
[1765570569875,0.0110877,90190.0,90185.0,0.05061287]
[1765570570159,0.01108794,90188.0,90185.0,0.05061287]
[1765570570569,0.22176317,90187.0,90185.0,0.05261287]
[1765570570914,0.22176317,90187.0,90185.0,0.05061287]
[1765570571362,0.22176317,90187.0,90185.0,0.05261287]
[1765570571603,0.22176317,90187.0,90185.0,0.002]
[1765570571813,0.26496317,90187.0,90185.0,0.002]
[1765570571989,0.26496317,90187.0,90185.0,0.003]
[1765570572187,0.22176317,90187.0,90185.0,0.003]
[1765570572381,0.22176317,90187.0,90185.0,0.04201]
[1765570572571,0.01108794,90188.0,90185.0,0.04362287]
[1765570572774,0.23284833,90188.0,90185.0,0.04562287]
[1765570572934,0.01108794,90188.0,90185.0,0.04362287]
[1765570573134,0.22176382,90187.0,90185.0,0.01942287]
[1765570573447,0.22176382,90187.0,90185.0,0.02142287]
[1765570573858,0.22176382,90187.0,90185.0,0.01742287]
[1765570574050,0.22176382,90187.0,90185.0,0.01842287]
[1765570574252,0.22176382,90187.0,90185.0,0.00361287]
[1765570574976,0.22176382,90187.0,90185.0,0.01942287]
[1765570575556,0.22176382,90187.0,90185.0,0.00361287]
[1765570577697,0.04334841,90186.0,90185.0,0.002]
[1765570577897,0.08654841,90186.0,90185.0,0.002]
[1765570578076,0.06504203,90186.0,90185.0,0.002]
[1765570578818,0.10353203,90186.0,90185.0,0.002]
[1765570579223,0.11035042,90186.0,90185.0,0.002]
[1765570579518,0.15355042,90186.0,90185.0,0.002]
[1765570579755,0.15355042,90186.0,90185.0,0.001]
[1765570580129,0.22179342,90174.0,90173.0,0.147]
[1765570581965,0.22179342,90174.0,90173.0,0.18602]
[1765570582287,0.22179342,90174.0,90173.0,0.16314]
[1765570582512,0.22179342,90174.0,90173.0,0.16475287]
[1765570583155,0.22179342,90174.0,90173.0,0.16575287]
[1765570583384,0.22179342,90174.0,90173.0,0.16675287]
[1765570583767,0.22179342,90174.0,90173.0,0.18963287]
[1765570584151,0.22179342,90174.0,90173.0,0.01975287]
[1765570584570,0.22179342,90174.0,90173.0,0.04263287]
[1765570584954,0.22179342,90174.0,90173.0,0.01975287]
[1765570585157,0.01108942,90176.0,90173.0,0.04263287]
[1765570585158,0.23288026,90176.0,90173.0,0.04263287]
[1765570585365,0.23288026,90176.0,90175.0,0.01614]
[1765570585747,0.23288026,90176.0,90175.0,0.03902]
[1765570585947,0.01108942,90176.0,90175.0,0.04063287]
[1765570586188,0.01108917,90178.0,90175.0,0.04063287]
[1765570586392,0.23287001,90180.0,90178.0,0.01614]
[1765570586567,0.23287001,90180.0,90179.0,0.01614]
[1765570586568,0.22177866,90180.0,90179.0,0.01614]
[1765570587891,0.22178604,90177.0,90176.0,0.00161287]
[1765570588316,0.22178604,90177.0,90176.0,0.01775287]
[1765570589344,0.22178604,90177.0,90176.0,0.01875287]
[1765570589614,0.22178604,90177.0,90176.0,0.01975287]
[1765570589761,0.22178604,90177.0,90176.0,0.00361287]
[1765570590380,0.28123604,90177.0,90176.0,0.002]
[1765570590589,0.30429604,90177.0,90176.0,0.002]
[1765570591125,0.28123604,90177.0,90176.0,0.002]
[1765570591523,0.28123604,90177.0,90176.0,0.001]
[1765570592191,0.64501443,90177.0,90176.0,0.001]
[1765570592391,0.31501673,90172.0,90171.0,0.00038902]
[1765570592541,0.33126673,90172.0,90171.0,0.00038902]
[1765570592744,0.35432673,90172.0,90171.0,0.00038902]
[1765570594067,0.35532673,90172.0,90171.0,0.00038902]
[1765570597129,0.27281673,90172.0,90171.0,0.00038902]
[1765570597627,0.31212673,90172.0,90171.0,0.00038902]
[1765570597828,0.22279834,90172.0,90171.0,0.02713189]
[1765570598139,0.22279834,90172.0,90171.0,0.05001189]
[1765570598281,0.22279834,90172.0,90171.0,0.01099189]
[1765570598691,0.22179834,90172.0,90171.0,0.01099189]
[1765570599105,0.22279834,90172.0,90171.0,0.01099189]
[1765570599291,0.22279834,90172.0,90171.0,0.02713189]
[1765570599889,0.22279834,90172.0,90171.0,0.05001189]
[1765570601840,0.22279834,90172.0,90171.0,0.02713189]
[1765570602863,0.22279834,90172.0,90171.0,0.05001189]
[1765570603263,0.001,90172.0,90171.0,0.05001189]
[1765570604849,0.22179799,90173.0,90171.0,0.05001189]
[1765570605097,0.22179799,90173.0,90172.0,0.03902]
[1765570605864,0.22179588,90173.0,90172.0,0.03902]
[1765570606599,0.22179588,90173.0,90172.0,0.04002]
[1765570607406,0.23288235,90175.0,90172.0,0.04002]
[1765570607552,0.23288235,90175.0,90174.0,0.01614]
[1765570607759,0.2328805,90175.0,90174.0,0.01614]
[1765570607980,0.2328805,90175.0,90174.0,0.03902]
[1765570608181,0.01108881,90181.0,90177.0,0.0110893]
[1765570608406,0.01108881,90181.0,90180.0,0.01614]
[1765570608967,0.01108881,90181.0,90180.0,0.03902]
[1765570609920,0.01108881,90181.0,90180.0,0.01614]
[1765570611887,0.01108881,90181.0,90180.0,0.03992]
[1765570612638,0.01108881,90181.0,90180.0,0.01614]
[1765570613533,0.01108881,90181.0,90180.0,0.01714]
[1765570614234,0.01108881,90181.0,90180.0,0.04092]
[1765570614387,0.01108881,90181.0,90180.0,0.01714]
[1765570616213,0.01108881,90181.0,90180.0,0.001]
[1765570616655,0.01108881,90181.0,90180.0,0.01608]
[1765570617422,0.01108881,90181.0,90180.0,0.001]
[1765570618576,0.05869243,90181.0,90180.0,0.001]
[1765570619177,0.05194881,90181.0,90180.0,0.001]
[1765570619727,0.09514881,90181.0,90180.0,0.001]
[1765570619856,0.05428881,90181.0,90180.0,0.001]